[Event "1000GM Schev-G2 March 2024"]
[Site "Santa Clara"]
[Date "2024.03.09"]
[Round "1.1"]
[White "Tang, Dylan"]
[Black "Alarcon Bahamondez, Roberto Ignacio"]
[Result "1/2-1/2"]
[ECO "C60"]
[WhiteElo "2152"]
[BlackElo "2335"]
[Annotator "TA"]
[PlyCount "168"]
[EventDate "2024.03.06"]
[EventType "schev"]
[EventCountry "USA"]
[SourceTitle "playchess.com"]
[Source "ChessBase"]
[SourceQuality "1"]
[TimeControl "5400+30"]

{[%evp 14,168,8,17,35,0,4,-64,-56,-64,-66,-68,-68,-67,-63,-69,-19,-18,-17,-29,-37,-17,0,0,0,0,0,-20,10,0,29,33,39,0,0,0,18,-58,-41,-72,-71,-67,-70,-71,-75,-67,-70,-66,-71,-83,-69,-89,-60,-66,-65,-81,-67,-70,-73,-69,-59,-75,-86,-182,-153,-259,-247,-239,-248,-238,-106,-106,-106,-3044,-913,-2397,-5050,-4480,-3924,-29954,-10265,-29970,-29967,-6444,-88,-88,-8,-8,-8,-8,-8,-8,0,-8,-8,-8,-8,-8,-8,-8,-8,-8,-8,-8,-8,-29973,-29974,-29973,-8,-8,-8,-29972,0,-8,0,-29974,-29975,-29974,-29975,-29975,-29974,-29974,-29973,-29974,-29970,-29970,0,-29974,-29971,-29971,0,-29974,-29968,-29968,-29968,-29967,-29964,-29966,-29962,-29950,-8,-8,-8,-8,-8,-8,-8,-8,-8,-8,-8,-8,-8,-8,-8,-8,-8]} 1. e4 {[%emt 0:05:42]} e5 {[%emt 0:00:18]} 2. Nf3 {[%emt 0:01:05]} Nc6 {[%emt 0:00:09]} 3. Bb5 {[%emt 0:00:05]} Nge7 {[%emt 0:00:55]} 4. O-O {[%emt 0:05:17]} g6 {[%emt 0:02:24]} 5. d4 {[%emt 0:02:57]} exd4 {[%emt 0:00:38]} 6. Nxd4 {[%emt 0:01:40]} Bg7 {[%emt 0:00:17]} 7. Be3 {[%emt 0:00:21]} O-O {[%emt 0:02:01]} 8. Nc3 {[%emt 0:01:52]} a6 {[%emt 0:04:12]} 9. Ba4 {[%emt 0:07:12]} Na5 {[%emt 0:04:20]} 10. Nd5 {[%emt 0:13:45]} (10. Bb3 $11) 10... Nxd5 $15 {[%emt 0:11:52] Black is slightly better.} 11. exd5 {[%emt 0:00:12]} Nc4 {[%emt 0:01:38]} 12. Bc1 {[%emt 0:06:59]} b5 {[%emt 0:10:07]} 13. Bb3 {[%emt 0:00:25]} Bb7 {[%emt 0:00:43]} 14. a4 {[%emt 0:09:05]} Qh4 {[%emt 0:07:41]} (14... Bxd5 $15 15. axb5 axb5 16. Rxa8 Bxa8) 15. axb5 $11 {[%emt 0:02:55]} Bxd4 {[%emt 0:00:44]} 16. Bxc4 {[%emt 0:01:46]} axb5 {[%emt 0:03:04]} 17. Rxa8 {[%emt 0:00:40]} Bxa8 {[%emt 0:01:16]} 18. Bb3 {[%emt 0:02:42]} Be5 $40 {[%emt 0:04:13][%csl Ge5][%cal Rh4h2][%mdl 128] White needs to defend precisely.} 19. g3 {[%emt 0:02:25]} Qf6 {[%emt 0:01:13]} 20. Qg4 {[%emt 0:01:30]} Qd6 {[%emt 0:04:15]} 21. Rd1 {[%emt 0:02:45]} Bb7 {[%emt 0:04:58]} 22. Qe2 {[%emt 0:02:35]} b4 {[%emt 0:01:37]} 23. Bd2 {[%emt 0:02:52][%cal Od2b4]} c5 {[%emt 0:01:49][%cal Ob7a6]} 24. Re1 {[%emt 0:02:04]} Re8 {[%emt 0:08:53]} 25. c3 {[%emt 0:01:13]} (25. Bf4 $11 f6 26. c3) 25... Bxd5 $15 {[%emt 0:03:14]} 26. Qd3 {[%emt 0:00:04]} Be6 {[%emt 0:00:25]} (26... Bxb3 $2 27. Qxd6 Bxd6 28. Rxe8+ Kg7 29. cxb4 cxb4 30. Bxb4 Bxb4 31. Rb8 $18) 27. Qxd6 {[%emt 0:01:02]} Bxd6 {[%emt 0:00:07]} 28. cxb4 {[%emt 0:00:15]} cxb4 {[%emt 0:00:42]} 29. Re4 {[%emt 0:00:20]} Rb8 {[%emt 0:00:29]} 30. Bxe6 {[%emt 0:01:22]} fxe6 {[%emt 0:01:13][%mdl 4096] Endgame. KRB-KRB} 31. b3 {[%emt 0:00:50]} Bf8 {[%emt 0:01:59]} 32. h3 {[%emt 0:02:58]} Rb6 {[%emt 0:00:40]} 33. Rc4 {[%emt 0:01:01]} Rb7 {[%emt 0:00:53]} 34. Re4 {[%emt 0:00:58]} Be7 {[%emt 0:01:01]} 35. Kf1 {[%emt 0:00:30]} Kf7 {[%emt 0:00:20]} 36. Rf4+ {[%emt 0:01:21]} Ke8 {[%emt 0:00:06]} 37. Re4 {[%emt 0:01:16]} Rb6 {[%emt 0:00:48]} 38. h4 {[%emt 0:00:37]} (38. Rc4 $17) 38... d5 $19 {[%emt 0:00:21]} 39. Rg4 {[%emt 0:00:31]} (39. Rd4 $17) 39... e5 {[%emt 0:02:34]} 40. h5 {[%emt 0:00:46] [#]} Kf7 $1 {[%emt 0:00:35]} (40... gxh5 41. Rg8+ Kf7 42. Rh8) 41. hxg6+ {[%emt 0:00:35]} Rxg6 {[%emt 0:03:42]} (41... hxg6 $19 42. f3 Bd6) 42. Rxg6 $17 {[%emt 0:00:22]} Kxg6 $19 {[%emt 0:01:00] KB-KB} 43. Ke2 $2 {[%emt 0:00:10][%mdl 8192]} (43. g4 $17) 43... Kf5 {[%emt 0:00:20]} (43... h5 $142 44. f3 Bc5) 44. f3 {[%emt 0:00:17]} h5 {[%emt 0:00:18]} 45. Be3 {[%emt 0:00:48]} Bd6 {[%emt 0:01:18]} 46. Bf2 {[%emt 0:00:50]} e4 {[%emt 0:00:55]} 47. Be1 {[%emt 0:01:32]} Bc5 {[%emt 0:01:32]} 48. Bd2 {[%emt 0:01:02]} exf3+ $2 {[%emt 0:00:46]} (48... d4 $19 {and Black stays clearly on top. ( -> ...d3+)} 49. fxe4+ Kxe4) 49. Kxf3 $17 {[%emt 0:00:14]} d4 {[%emt 0:00:27]} ({Better is} 49... Bf8 $17) 50. Bf4 $11 {[%emt 0:00:46]} d3 {[%emt 0:00:32]} 51. Bd2 {[%emt 0:00:07]} Be7 {[%emt 0:01:06]} 52. Be1 $1 {[%emt 0:00:29]} Bc5 {[%emt 0:00:38]} 53. Bd2 {[%emt 0:00:04]} Ke5 {[%emt 0:01:16]} 54. Be1 {[%emt 0:01:49]} Kd4 {[%emt 0:01:18]} 55. Bf2+ {[%emt 0:00:07]} Kd5 {[%emt 0:00:50]} 56. Be1 {[%emt 0:00:29]} Ke5 {[%emt 0:02:55]} 57. Bd2 {[%emt 0:02:04]} Be7 {[%emt 0:00:47]} (57... Kf5 $5) 58. Be1 {[%emt 0:00:12]} (58. Ke3 Bg5+ 59. Kxd3 Bxd2 60. Kxd2 Kd4 61. Kc2 Ke3 62. Kd1 Kd3 63. Ke1 Kc3 64. Ke2 Kxb3 65. Kd3 Kb2 66. Kd4 b3 67. Kd3 Kc1 68. Ke3 b2 69. Kf4 b1=Q (69... b1=B 70. Kg5 $11) 70. Kg5 Qb8 71. Kg6 Qxg3+ 72. Kf7 h4 73. Kf6 h3 74. Kf5 h2 75. Ke4 h1=Q+ (75... h1=N 76. Kd5 Qc7 77. Ke6 Qc5 78. Kf6 Qd6+ 79. Kf7 Ng3 80. Kg7 Nf5+ 81. Kf7 Qc6 82. Kg8 Qf6 83. Kh7 Qg7#) 76. Kd4 Qd6+ 77. Kc4 Qe4+ 78. Kc3 Qg3#) 58... Kf5 {[%emt 0:01:32]} 59. Ke3 $2 {[%emt 0:01:58][%mdl 8192] [#]} (59. Bd2 $11) 59... Kg4 {[%emt 0:00:37]} 60. Kxd3 {[%emt 0:00:23]} Bd6 $2 {[%emt 0:00:11]} (60... Kf3 61. Kc4 Bd6 62. Bd2 Kxg3 (62... Bxg3 $2 63. Bg5 $19) 63. Kd3 h4 64. Be1+ Kg4 65. Ke2 h3 66. Kf1 Bc5 67. Bf2 Kf3 (67... h2 68. Kg2 Bxf2 69. Kxh2 Kf3 70. Kh3 Bb6 71. Kh2 Ke2 72. Kg3 Kd3 73. Kf4 Kc3 74. Ke5 Kxb3 75. Kd5 Kc3 76. Kc6 Bd4 77. Kd6 b3 78. Ke6 b2 79. Kf5 b1=Q+ 80. Ke6 Qg6+ 81. Kd7 Bb6 82. Ke7 Kd4 83. Kd7 Qf7+ 84. Kc6 Bd8 85. Kd6 Qd5#) 68. Kg1 Bxf2+ 69. Kh2 Kg4 70. Kh1 Bg3 71. Kg1 Kf3 72. Kh1 Ke3 73. Kg1 Kd4 74. Kh1 Kc3 75. Kg1 Kxb3 76. Kf1 Kc4 77. Ke2 h2 78. Kf3 b3 (78... h1=R 79. Kg2 Ra1 80. Kxg3 b3 81. Kh2 b2 82. Kg3 b1=Q 83. Kf4 Qf1+ 84. Kg3 Ra2 85. Kh4 Rg2 86. Kh5 Qh1#) (78... h1=Q+ 79. Kxg3 b3 80. Kf4 b2 81. Kg4 b1=Q 82. Kg5 Qf3 83. Kh4 Qh7+ 84. Kg5 Qhh5#) 79. Kxg3 h1=Q (79... h1=R {is a self mate.} 80. Kg2 Rh7 81. Kf3 b2 82. Kg4 b1=Q 83. Kf4 Qf1+ 84. Kg5 Rg7+ 85. Kh6 Qf6+ 86. Kh5 Qg5#) 80. Kg4 b2 81. Kf5 b1=Q+ (81... b1=B+ 82. Kf4 Qe4+ 83. Kg3 Qe3+ 84. Kg4 Be4 85. Kh4 Qf4+ 86. Kh5 Qg3 87. Kh6 Qg6#) 82. Kg5 Qhh7 83. Kf4 Qbe4+ 84. Kg5 Qhh4#) 61. Ke2 {[%emt 0:00:13]} Bc5 {[%emt 0:00:50]} 62. Kd3 $2 {[%emt 0:13:04][%mdl 8192]} (62. Bf2 $11 Be7 63. Be1) 62... Bd6 $2 (62... Kf3 63. Bd2 Kxg3 64. Ke4 h4 65. Bg5 Bd6 66. Bxh4+ Kxh4 67. Kf3 Bg3 68. Ke4 Kg4 69. Ke3 Be5 70. Ke4 Bc3 71. Ke3 Kg3 72. Ke4 Kf2 73. Kd3 Kf3 74. Kc4 Ke3 75. Kd5 Kd3 76. Kc5 Kc2 77. Kc4 Kb2 78. Kd5 Kxb3 79. Kc5 Kc2 80. Kd5 b3 81. Kc6 b2 82. Kc5 b1=Q (82... b1=B 83. Kd6 Kd3 84. Kc5 Bh8 85. Kd5 Bd4 86. Kd6 Kc4 87. Ke6 Kc5 88. Ke7 Bf5 89. Ke8 Kd6 90. Kf7 Bc2 91. Kf8 Bg6 92. Kg8 Kd7 93. Kf8 Ke6 94. Kg8 Kf6 95. Kf8 Bc5+ 96. Kg8 Bf5 97. Kh8 Kg6 98. Kg8 Be6+ 99. Kh8 Bd4#) 83. Kc6 Qd1 84. Kc7 Qd5 85. Kb6 Qd7 86. Ka6 Qc7 87. Kb5 Qd6 88. Kc4 Qc6#) 63. Ke2 {[%emt 0:00:00]} Bc5 $2 {[%emt 0:00:22][%mdl 8192]} (63... Bxg3 $11 64. Bxb4 h4) 64. Kd3 {[%emt 0:00:00]} Kf3 {[%emt 0:00:55]} 65. Kc4 {[%emt 0:00:00]} Bd6 {[%emt 0:00:14]} 66. Bd2 {[%emt 0:00:00]} Bxg3 {[%emt 0:01:19]} 67. Bg5 {[%emt 0:00:00]} Be1 {[%emt 0:00:12]} 68. Be7 {[%emt 0:00:00]} Bc3 {[%emt 0:00:34]} 69. Kd3 {[%emt 0:00:00]} Be1 {[%emt 0:00:37]} 70. Kc4 {[%emt 0:00:00]} Kg3 {[%emt 0:00:49]} 71. Kd3 {[%emt 0:00:00]} Kf3 {[%emt 0:00:32]} 72. Kc4 {[%emt 0:00:00]} Ke3 {[%emt 0:00:37]} 73. Bg5+ {[%emt 0:00:00]} Ke2 {[%emt 0:00:16]} 74. Be7 {[%emt 0:00:00]} Bc3 {[%emt 0:00:45]} 75. Bd8 {[%emt 0:00:00]} Kd2 {[%emt 0:00:28]} 76. Be7 {[%emt 0:00:00]} Kc2 $2 {[%emt 0:00:13]} (76... Ke1 {mates} 77. Kd3 Kf2 78. Bg5 Be1 79. Bd8 Kg2 80. Be7 h4 81. Ke2 Bf2 (81... h3 82. Kxe1 h2 83. Bxb4 $19) 82. Bxh4 Bxh4 83. Ke3 Kf1 84. Kd2 Bg5+ 85. Kd3 Ke1 86. Kc4 Be7 87. Kd5 Kd1 88. Kd4 Kc2 89. Kc4 Bf8 90. Kd4 Kxb3 91. Kd3 Bc5 92. Kd2 Kc4 93. Kd1 b3 94. Kc1 Be7 95. Kd2 b2 (95... Bg5+ {leads to mate.} 96. Ke2 b2 97. Kf3 b1=Q 98. Kg4 Qg1+ 99. Kf3 Kd4 100. Ke2 Qg2+ 101. Ke1 Bh6 102. Kd1 Qd2#) 96. Ke3 b1=Q (96... b1=B 97. Kf2 Bg5 98. Kf1 Kd3 99. Kf2 Ke4 100. Kg2 Ke3 101. Kg3 Bf5 102. Kg2 Bh4 103. Kf1 Kf3 104. Kg1 Bf2+ 105. Kh1 Be6 106. Kh2 Bd4 107. Kh1 Kf2 108. Kh2 Be5+ 109. Kh1 Bd5#) 97. Kf4 Qg6 98. Kf3 Kd3 99. Kf2 Bh4+ 100. Kf1 Kd4 101. Ke2 Qd3#) 77. Bd8 {[%emt 0:00:00] The position is equal.} Be1 {[%emt 0:00:31]} 78. Be7 {[%emt 0:00:00]} Kd1 {[%emt 0:00:20] ...Ke2 would now be deadly.} 79. Kd3 {[%emt 0:00:37]} h4 {[%emt 0:01:14] Threatens to win with ...h3.} (79... Bc3 $5) 80. Ke3 {[%emt 0:00:02]} h3 {[%emt 0:00:29]} (80... Kc2 $5 81. Ke2 $8 h3 $11) 81. Kf3 {[%emt 0:00:13]} Kc2 {[%emt 0:00:37]} (81... h2 $5 82. Kg2 $8 Ke2 $11) 82. Bxb4 $1 {[%emt 0:00:07]} h2 {[%emt 0:00:21]} (82... Bxb4 $5 83. Kg3 $8 Kd3 $11 (83... Kxb3 84. Kxh3 $11)) 83. Kg2 $1 {[%emt 0:00:01]} Bxb4 {[%emt 0:00:07]} 84. Kxh2 {[%emt 0:00:05]} Kxb3 {[%emt 0:00:36] Black had all chances to win.   Weighted Error Value: White=0.68/Black=0.50.  Loses game:     	White=3     	---        Missed win:     	---       	Black=1      Mistake:       	White=4     	Black=3      Inaccurate:     	White=4     	Black=3      OK:         	White=28    	Black=17     Best:        	White=6     	Black=4      Strong:       	White=3     	Black=1} 1/2-1/2

[Event "1000GM Schev-G2 March 2024"]
[Site "Santa Clara"]
[Date "2024.03.09"]
[Round "1.2"]
[White "Pullela, Sricharan"]
[Black "Filgueiras, Nathan Felipe"]
[Result "1/2-1/2"]
[ECO "A45"]
[WhiteElo "2114"]
[BlackElo "2316"]
[Annotator "TA"]
[PlyCount "120"]
[EventDate "2024.03.06"]
[EventType "schev"]
[EventCountry "USA"]
[SourceTitle "playchess.com"]
[Source "ChessBase"]
[SourceQuality "1"]
[TimeControl "5400+30"]

{[%evp 9,120,-2,-2,0,0,0,4,-9,-10,-10,-3,-43,-41,-65,-40,-46,-47,-66,-38,-114,-116,-113,-43,-55,-43,-45,-45,-42,-47,-89,21,-87,0,-120,-124,-122,0,0,0,0,0,0,0,0,0,0,0,0,0,-6,0,0,0,0,0,-25,-55,-56,0,0,0,0,0,0,0,-32,-13,-33,-30,-26,0,0,0,0,0,-26,-1,-43,-26,-26,0,-26,-26,-104,-104,-104,-94,-97,-102,-102,-100,-62,0,-27,-27,-27,-27,-27,-20,-108,-107,-109,-94,-291,-255,-5835,-5735,-1078,0,0,0,0,0]} 1. d4 {[%emt 0:00:01]} Nf6 {[%emt 0:00:34]} 2. Bg5 {[%emt 0:00:05]} b6 {[%emt 0:01:03]} 3. Bxf6 {[%emt 0:03:27]} exf6 {[%emt 0:00:46]} 4. e3 {[%emt 0:00:58]} Bb7 {[%emt 0:02:48]} 5. Nf3 {[%emt 0:00:14]} g6 {[%emt 0:01:36]} 6. c4 {[%emt 0:02:54]} Bg7 {[%emt 0:03:12]} 7. Nc3 {[%emt 0:00:22]} f5 {[%emt 0:00:38]} 8. Bd3 {[%emt 0:01:53]} O-O {[%emt 0:02:47]} 9. O-O {[%emt 0:00:41]} d6 {[%emt 0:09:48]} 10. b4 {[%emt 1:24:55]} c5 {[%emt 1:12:18]} 11. Nd5 {[%emt 0:00:30]} Nd7 {[%emt 0:00:30][%cal Ob6b5]} 12. Rb1 {[%emt 0:00:30]} cxd4 {[%emt 0:00:00]} 13. exd4 {[%emt 0:00:00]} Nf6 {[%emt 0:00:00]} 14. Qb3 {[%emt 0:01:00]} (14. Nxf6+ $15 Qxf6 15. d5) 14... Nxd5 $17 {[%emt 0:00:00]} 15. cxd5 {[%emt 0:00:00]} Qf6 {[%emt 0:00:00]} (15... Rc8 $17 16. a4 Qc7) 16. Bb5 {[%emt 0:00:00]} Rac8 {[%emt 0:00:00] Verhindert Bc6} 17. Rbc1 {[%emt 0:00:00]} Bh6 {[%emt 0:00:00] Das Läuferpaar ist gut.} 18. Rxc8 {[%emt 0:00:00]} Rxc8 {[%emt 0:00:00]} 19. h4 {[%emt 0:00:00]} f4 {[%emt 0:00:00]} (19... Rc7 $17 20. Re1 f4) 20. Re1 {[%emt 0:00:00]} (20. Bc6 $1 $11 {hält das Gleichgewicht.} Bxc6 21. dxc6 Rxc6 22. Qa4) 20... Bf8 {[%emt 0:00:00]} (20... Rc7 $1 $17) 21. Bd7 {[%emt 0:00:00]} (21. Bc6 $1 $11 Bxc6 22. dxc6 Rxc6 23. Qd5) 21... Rc7 {[%emt 0:00:00]} 22. Bc6 {[%emt 0:00:00]} Re7 {[%emt 0:00:00]} (22... Bc8 $17 23. Re8 Bg4) 23. Bxb7 $11 {[%emt 0:00:00]} Rxe1+ {[%emt 0:00:00]} 24. Nxe1 {[%emt 0:00:00][%cal Bf3e1,Be1d3,Bd3f4][%mdl 32] Zielt auf Nf3 ab.} Qe7 $1 {[%emt 0:00:00]} 25. Nd3 {[%emt 0:00:00]} Qxb7 {[%emt 0:00:00]} 26. Nxf4 {[%emt 0:00:00][%mdl 4096] Endspiel. KQB-KQN} Qe7 {[%emt 0:00:00] Droht ...Qe1+ und aus.} 27. g3 {[%emt 0:00:27]} Qe1+ {[%emt 0:00:00]} 28. Kg2 {[%emt 0:00:03]} Qe4+ {[%emt 0:00:00]} 29. Kf1 {[%emt 0:01:14]} Qxd4 {[%emt 0:00:00]} 30. b5 {[%emt 0:00:29]} Bg7 {[%emt 0:00:00]} 31. a4 {[%emt 0:00:31]} Qe4 {[%emt 0:00:00]} 32. f3 {[%emt 0:04:37]} Qd4 {[%emt 0:00:00]} 33. Ne2 {[%emt 0:00:43]} Qc5 {[%emt 0:03:30]} (33... Qa1+ $15 34. Kg2 Bd4 35. Nxd4 Qxd4) 34. Qd3 {[%emt 0:00:08]} Be5 {[%emt 0:02:43]} 35. Kg2 {[%emt 0:00:43]} Kg7 {[%emt 0:00:33]} 36. g4 $1 {[%emt 0:00:30]} Qb4 {[%emt 0:00:48]} 37. Qe4 {[%emt 0:00:44]} Qe1 {[%emt 0:00:29]} 38. h5 {[%emt 0:00:22]} Qh4 {[%emt 0:01:32]} 39. hxg6 {[%emt 0:00:08]} Qh2+ {[%emt 0:01:25]} 40. Kf1 {[%emt 0:00:04] Droht stark gxf7.} Qh3+ {[%emt 0:00:36]} ({Natürlich nicht} 40... fxg6 41. f4 Qh3+ 42. Qg2 Qxg2+ 43. Kxg2 $14) 41. Kf2 {[%emt 0:00:48] gxf7 ist eine echte Drohung.} hxg6 {[%emt 0:00:26]} 42. Qc4 {[%emt 0:00:31]} Bf6 {[%emt 0:01:26]} 43. Qe4 {[%emt 0:00:41]} Qh4+ {[%emt 0:00:33]} 44. Ke3 {[%emt 0:02:17]} Qh3 {[%emt 0:02:29]} 45. Kf2 {[%emt 0:00:00]} Qh1 {[%emt 0:00:00]} 46. Qc4 {[%emt 0:00:00]} (46. Ke3 $1 $11) 46... Bh4+ $17 {[%emt 0:00:00]} 47. Ke3 {[%emt 0:00:00]} Bg5+ {[%emt 0:00:00]} 48. Kf2 {[%emt 0:00:18]} Qh2+ {[%emt 0:00:11]} 49. Kf1 {[%emt 0:00:39]} Qh3+ $1 {[%emt 0:00:53]} 50. Kf2 {[%emt 0:00:04]} Qh2+ {[%emt 0:00:50]} 51. Kf1 {[%emt 0:00:05]} Bh4 $36 {[%emt 0:00:18][%csl Gh4][%cal Rh2f2][%mdl 2048] Weiss steht unter Druck.} 52. Qd4+ {[%emt 0:00:19]} Bf6 {[%emt 0:00:14]} 53. Qe4 {[%emt 0:01:05]} Qh1+ {[%emt 0:00:12]} 54. Kf2 {[%emt 0:00:15] [#]} (54. Ng1 $1 $11 {bleibt in der Remisbreite.}) 54... Bh4+ $1 {[%emt 0:00:47]} 55. Ke3 {[%emt 0:01:54] [#]} Qe1 $1 56. Qc4 $2 {[%emt 0:00:37]} (56. Kd3 $17) 56... Bf2+ $19 57. Ke4 $2 {[%emt 0:01:14]} (57. Kd3 Qd1+ 58. Kc3) 57... Qb1+ {[%emt 0:02:15]} 58. Kf4 {[%emt 0:00:30]} f6 $2 {[%emt 0:01:20]} ({Vorzuziehen ist} 58... Kh6 $19 {[%csl Gh6][%cal Rg6g5]} 59. g5+ Kh5) 59. Qe4 $11 {[%emt 0:00:30]} Qb2 {[%emt 0:00:00] ( -> ...Qd2+)} 60. Qe7+ {[%emt 0:00:00]} Kg8 {[%emt 0:00:00] Gewichteter Fehlerwert: Weiß=0.36/Schwarz=0.23 (präzise) .  Verlustzug:     	Weiß=1     	---        Fehler:       	Weiß=6     	Schwarz=5     Ungenau:       	Weiß=5     	Schwarz=3     OK:         	Weiß=13    	Schwarz=23    Bester:       	Weiß=10    	Schwarz=4     Stark:        	Weiß=1     	Schwarz=4} 1/2-1/2

[Event "1000GM Schev-G2 March 2024"]
[Site "Santa Clara"]
[Date "2024.03.09"]
[Round "1.3"]
[White "Chiang, Jacob"]
[Black "Garcia Guerrero, Isaac Antonio"]
[Result "0-1"]
[ECO "D33"]
[WhiteElo "2154"]
[BlackElo "2300"]
[Annotator "TA"]
[PlyCount "116"]
[EventDate "2024.03.06"]
[EventType "schev"]
[EventCountry "USA"]
[SourceTitle "playchess.com"]
[Source "ChessBase"]
[SourceQuality "1"]
[TimeControl "5400+30"]

{[%evp 16,116,35,20,27,33,34,54,36,30,48,-8,0,-7,-27,-36,-31,-37,-28,-39,-35,-89,16,-85,-98,-135,-145,-140,-143,-353,-361,-349,-349,-353,-349,-358,-363,-460,-333,-325,-250,-252,-245,-233,-112,-128,-112,-113,-113,-139,-139,-289,-272,-289,-289,-308,-261,-329,-329,-328,-377,-435,-410,-447,-427,-449,-449,-437,-444,-451,-443,-437,-445,-450,-452,-445,-419,-452,-474,-474,-481,-479,-460,-479,-451,-610,-637,-510,-510,-510,-510,-637,-601,-841,-841,-833,-498,-825,-825,-29985,-29986,-29989,-29990]} 1. c4 {[%emt 0:00:01]} e6 {[%emt 0:01:01]} 2. Nc3 {[%emt 0:00:49]} d5 {[%emt 0:00:16]} 3. d4 {[%emt 0:00:03]} c5 {[%emt 0:00:27]} 4. cxd5 {[%emt 0:00:31]} exd5 {[%emt 0:00:30]} 5. Nf3 {[%emt 0:00:02][%cal Bg1f3,Bf3d4,Bd4b3][%mdl 32]} Nc6 {[%emt 0:00:13]} 6. g3 {[%emt 0:02:29]} Nf6 {[%emt 0:00:16]} 7. Bg2 {[%emt 0:00:48]} cxd4 {[%emt 0:00:20]} 8. Nxd4 {[%emt 0:00:06]} Bc5 {[%emt 0:00:11]} 9. Nb3 {[%emt 0:01:17][%csl LRc5,LRd5]} Bb6 {[%emt 0:00:10]} 10. O-O {[%emt 0:00:51][%cal Oa2a4]} d4 {[%emt 0:01:11]} 11. Na4 {[%emt 0:01:08]} O-O {[%emt 0:00:11] White is slightly better.} 12. Bg5 {[%emt 0:01:58]} h6 {[%emt 0:05:51]} 13. Bf4 {[%emt 0:06:55]} (13. Bxc6 $14 hxg5 14. Bg2) 13... Re8 {[%emt 0:06:21]} 14. Rc1 {[%emt 0:04:41][%cal Ob3c5]} Bg4 {[%emt 0:04:09]} 15. Re1 {[%emt 0:01:59][%cal Ob3c5] [#]} Rxe2 $1 {[%emt 0:11:57]} 16. Rxe2 {[%emt 0:06:46]} d3 {[%emt 0:00:49]} 17. Bf1 {[%emt 0:07:45][%cal Od1d3]} g5 $36 {[%emt 0:10:33][%mdl 2048] Black fights for an advantage.} 18. Bd2 {[%emt 0:06:35]} Ne5 {[%emt 0:11:46] [#] Black is more active.} ({Better is} 18... dxe2 $17 19. Bxe2 Bxf2+ 20. Kxf2 Bxe2 21. Qxe2 Nd4) 19. Rxe5 {[%emt 0:13:43]} Bxf2+ $17 {[%emt 0:02:44]} 20. Kg2 {[%emt 0:00:59][%cal Od2a5]} Bxd1 {[%emt 0:00:51]} 21. Rxd1 {[%emt 0:00:16] [#]} Qd7 {[%emt 0:09:26] Repels Rf5. Some like it hot} 22. h3 $2 {[%emt 0:10:14]} (22. Nac5 $17 Qc6+ 23. Kxf2 Ng4+ 24. Kg1 Nxe5 25. Bg2) 22... Bd4 $19 {[%emt 0:08:56]} (22... Qxa4 23. Kxf2 Qxa2 24. Nc1 Qxb2 25. Re3 $14 (25. Nxd3 Qc2 $17)) 23. Nxd4 {[%emt 0:08:37]} Qxd4 {[%emt 0:01:27]} 24. Bc3 {[%emt 0:00:25]} Qxa4 {[%emt 0:00:44]} 25. Rxd3 {[%emt 0:00:08] [#]} Ne4 $1 {[%emt 0:04:36]} ({Inferior is} 25... Qxa2 26. Rd6 Ne8 (26... Rc8 $2 27. Ra5 $18) 27. Rxh6 $14) 26. Rf5 {[%emt 0:06:32]} Nxc3 {[%emt 0:01:25]} 27. Rxc3 {[%emt 0:01:09]} Qe4+ {[%emt 0:01:51]} 28. Rcf3 {[%emt 0:00:56]} Rf8 {[%emt 0:05:21]} 29. b3 {[%emt 0:01:46]} a6 {[%emt 0:00:51]} (29... Kg7 $19 {aiming for ...Qe7.} 30. Kh2 f6) 30. Bc4 $17 {[%emt 0:01:26]} b5 {[%emt 0:01:01]} 31. Bd5 {[%emt 0:00:44]} Qd4 {[%emt 0:01:52]} 32. g4 {[%emt 0:00:50]} Kh8 {[%emt 0:01:03] Strongly threatening ...f6.} 33. Rf2 {[%emt 0:02:49]} (33. Bxf7 $17 Rc8 34. Bh5) 33... f6 $19 {[%emt 0:04:02]} 34. Bc6 {[%emt 0:05:27]} Kg7 {[%emt 0:01:20]} 35. Bb7 {[%emt 0:00:48]} Qb6 {[%emt 0:00:29]} 36. Bd5 {[%emt 0:00:23]} Re8 {[%emt 0:00:27]} 37. Bf3 {[%emt 0:01:54]} Re5 {[%emt 0:01:12]} 38. Rxe5 {[%emt 0:00:05]} fxe5 {[%emt 0:00:05][%mdl 4096] Endgame. KQ-KRB} 39. Re2 {[%emt 0:00:05]} Qd4 {[%emt 0:00:39]} 40. Re4 {[%emt 0:00:17]} Qc3 {[%emt 0:00:09]} 41. Re2 {[%emt 0:00:11]} Kf6 {[%emt 0:00:18]} 42. Be4 {[%emt 0:00:22]} Ke7 {[%emt 0:00:16]} 43. Bf3 {[%emt 0:00:11]} Kd6 {[%emt 0:00:55]} 44. Be4 {[%emt 0:00:05]} Qc1 {[%emt 0:00:35]} 45. Bf3 {[%emt 0:00:29]} Qa1 {[%emt 0:00:49]} 46. Rc2 {[%emt 0:00:25]} Qd4 {[%emt 0:00:54]} 47. Re2 {[%emt 0:00:18]} Kc5 {[%emt 0:00:18]} 48. Re4 {[%emt 0:00:24]} Qa1 {[%emt 0:00:37]} 49. Re2 {[%emt 0:00:10]} Kd4 {[%emt 0:00:16]} 50. Rd2+ {[%emt 0:00:18]} Ke3 {[%emt 0:00:29]} 51. Re2+ {[%emt 0:00:17]} Kd3 {[%emt 0:00:08][%cal Oe5e4]} 52. Kf2 {[%emt 0:00:10]} Qd4+ {[%emt 0:00:26]} 53. Kg2 {[%emt 0:00:34]} Qf4 {[%emt 0:01:17]} 54. Rf2 {[%emt 0:00:19] And now Be2+ would win.} Qe3 {[%emt 0:00:38]} 55. Bb7 {[%emt 0:00:16]} Qb6 {[%emt 0:00:47]} 56. Bd5 {[%emt 0:01:49]} (56. Bf3 $142) 56... e4 {[%emt 0:00:26] ( -> ...e3)} 57. b4 {[%emt 0:01:11]} e3 {[%emt 0:00:17]} 58. Rf3 {[%emt 0:00:16]} Kd2 {[%emt 0:00:30] Weighted Error Value: White=0.55/Black=0.21 (precise) .  Loses game:     	White=1     	---        Mistake:       	White=4     	Black=2      Inaccurate:     	White=4     	---        OK:         	White=14    	Black=20     Best:        	---       	Black=4      Strong:       	---       	Black=1} 0-1